fUSD/lending_fUSD_20250720
["ID","MTS","AMOUNT","RATE_DAILY","PERIOD"]
[373450245,1753013498966,-1355.52,0.00019835,2]
[373450246,1753013498976,-480.0,0.00019835,2]
[373450247,1753013498985,-4234.24,0.00019835,2]
[373450248,1753013498995,-895.67,0.00019835,2]
[373450249,1753013499004,-572.51859643,0.00019835,2]
[373450250,1753013499014,-1394.78,0.00019835,2]
[373450251,1753013499023,-3560.8,0.00019835,2]
[373450252,1753013499032,-730.7,0.00019835,2]
[373450253,1753013499042,-809.54,0.00019835,2]
[373450254,1753013499051,-868.35,0.00019835,2]
[373450255,1753013499061,-1757.67,0.00019835,2]
[373450256,1753013499071,-759.65,0.00019835,2]
[373450257,1753013499081,-1017.17,0.00019835,2]
[373450258,1753013499090,-3875.10994854,0.00019835,2]
[373450259,1753013499382,-31373.18005146,0.00019835,2]
[373450260,1753013499392,-1021.35,0.00019835,2]
[373450261,1753013499401,-480.0,0.00019835,2]
[373450262,1753013499411,-766.3,0.00019835,2]
[373450263,1753013499420,-1244.45,0.00019835,2]
[373450264,1753013499430,-480.0,0.00019835,2]
[373450265,1753013499439,-3481.18,0.00019835,2]
[373450266,1753013499449,-2165.44,0.00019835,2]
[373450267,1753013499458,-1156.3,0.00019835,2]
[373450268,1753013499467,-2045.37,0.00019835,2]
[373450269,1753013499476,-480.0,0.00019835,2]
[373450270,1753013499485,-709.15,0.00019835,2]
[373450271,1753013499495,-353.39234786,0.00019835,2]
[373450272,1753013499504,-5121.82,0.00019835,2]
[373450273,1753013499514,-700.45,0.00019835,2]
[373450274,1753013499523,-1115.11,0.00019835,2]
[373450275,1753013499532,-788.88,0.00019835,2]
[373450276,1753013499542,-1705.55,0.00019835,2]
[373450277,1753013499551,-732.11,0.00019835,2]
[373450278,1753013499560,-1820.86,0.00019835,2]
[373450279,1753013499569,-1603.92,0.00019835,2]
[373450280,1753013499578,-480.0,0.00019835,2]
[373450281,1753013499587,-2291.6,0.00019835,2]
[373450282,1753013499596,-4538.14,0.00019835,2]
[373450283,1753013499605,-1167.46,0.00019835,2]
[373450284,1753013499615,-480.0,0.00019835,2]
[373450285,1753013499624,-1766.28,0.00019835,2]
[373450286,1753013499634,-1927.52,0.00019835,2]
[373450287,1753013499643,-551.46,0.00019835,2]
[373450288,1753013499652,-851.47,0.00019835,2]
[373450289,1753013499661,-480.0,0.00019835,2]
[373450290,1753013499670,-1573.77,0.00019835,2]
[373450291,1753013499680,-159.305545,0.00019835,2]
[373450292,1753013499689,-816.02,0.00019835,2]
[373450293,1753013499699,-2564.67,0.00019835,2]
[373450294,1753013499708,-1348.14,0.00019835,2]
[373450295,1753013499717,-159.305537,0.00019835,2]
[373450296,1753013499727,-1319.12,0.00019835,2]
[373450297,1753013499736,-151.0,0.00019835,2]
[373450298,1753013499744,-480.0,0.00019835,2]
[373450299,1753013499753,-1121.19,0.00019835,2]
[373450300,1753013499762,-2773.41,0.00019835,2]
[373450301,1753013499771,-952.71,0.00019835,2]
[373450302,1753013499780,-480.0,0.00019835,2]
[373450303,1753013499790,-480.0,0.00019835,2]
[373450304,1753013499799,-480.0,0.00019835,2]
[373450305,1753013499808,-1758.02,0.00019835,2]
[373450306,1753013499817,-1723.5,0.00019835,2]
[373450307,1753013499826,-1539.49,0.00019835,2]
[373450308,1753013499835,-1015.04,0.00019835,2]
[373450309,1753013499844,-480.0,0.00019835,2]
[373450310,1753013499852,-813.68,0.00019835,2]
[373450311,1753013499861,-1361.52,0.00019835,2]
[373450312,1753013499871,-1434.25,0.00019835,2]
[373450313,1753013499881,-480.0,0.00019835,2]
[373450314,1753013499890,-5207.27719633,0.00019835,2]
[373450315,1753013499913,-480.0,0.00019397,2]
[373450316,1753013499922,-1228.94280367,0.00019835,2]
[373450317,1753013499931,-1549.35,0.00019835,2]
[373450318,1753013499940,-99.26989002,0.00019835,2]
[373450319,1753013499960,-480.0,0.00019178,2]
[373450320,1753013499969,-2426.06010998,0.00019835,2]
[373450321,1753013499978,-1003.73,0.00019835,2]
[373450322,1753013499987,-1508.86,0.00019835,2]
[373450323,1753013499996,-480.0,0.00019835,2]
[373450324,1753013500006,-717.59,0.00019835,2]
[373450325,1753013500015,-1095.0,0.00019835,2]
[373450326,1753013500024,-2638.56,0.00019835,2]
[373450327,1753013500033,-1222.94,0.00019835,2]
[373450328,1753013500042,-619.46,0.00019835,2]
[373450329,1753013500051,-1701.08,0.00019835,2]
[373450330,1753013500061,-643.579262,0.00019835,2]
[373450331,1753013500070,-905.54,0.00019835,2]
[373450332,1753013500079,-1715.41,0.00019835,2]
[373450333,1753013500246,-480.0,0.00019835,2]
[373450334,1753013500259,-643.579262,0.00019835,2]
[373450335,1753013500270,-480.0,0.00019835,2]
[373450336,1753013500279,-1135.56,0.00019835,2]
[373450337,1753013500288,-3688.76,0.00019835,2]
[373450338,1753013500297,-477.8244318,0.00019835,2]
[373450339,1753013500978,-480.0,0.00019178,2]
[373450340,1753013500988,-30.43388629,0.00019178,2]
[373450341,1753013501127,-449.56611371,0.00019178,2]
[373450342,1753013501137,-480.0,0.00019178,2]
[373450343,1753013501146,-480.0,0.00019287,2]
[373450344,1753013501156,-420.0,0.00019287,2]
[373450345,1753013501166,-510.08,0.00019397,2]
[373450346,1753013501178,-480.0,0.00019506,2]
[373450347,1753013501187,-480.0,0.00019616,2]
[373450348,1753013501197,-480.0,0.00019726,2]
[373450349,1753013501207,-672.5155682,0.00019835,2]
[373450350,1753013501216,-2526.18,0.00019835,2]
[373450351,1753013501228,-480.0,0.00019835,2]
[373450352,1753013501239,-1674.29,0.00019835,2]
[373450353,1753013501248,-480.0,0.00019835,2]
[373450354,1753013501258,-533.04,0.00019835,2]
[373450355,1753013501269,-2332.93,0.00019835,2]
[373450356,1753013501279,-755.65,0.00019835,2]
[373450357,1753013501289,-1015.67016201,0.00019835,2]
[373450358,1753013503999,-936.13983799,0.00019835,2]
[373450359,1753013504009,-299.27772587,0.00019835,2]
[373450360,1753013504019,-1566.95,0.00019835,2]
[373450361,1753013504029,-480.0,0.00019835,2]
[373450362,1753013504038,-1606.18,0.00019835,2]
[373450363,1753013504048,-3089.34,0.00019835,2]
[373450364,1753013504057,-811.76,0.00019835,2]
[373450365,1753013504067,-5397.35,0.00019835,2]
[373450366,1753013504077,-376.89015273,0.00019889,2]
[373450367,1753013504086,-1004.8739,0.00019899,2]
[373450368,1753013504095,-1565.68,0.000199,2]
[373450369,1753013504105,-908.87720594,0.000199,2]
[373450370,1753013504114,-150.0,0.000199,2]
[373450371,1753013504124,-450.54927184,0.000199,2]
[373450372,1753013504133,-2559.11569651,0.000199,2]
[373450373,1753013504143,-151.0,0.000199,2]
[373450374,1753013504152,-344.98328396,0.000199,2]
[373450375,1753013504162,-152.41746568,0.000199,2]
[373450376,1753013504172,-1644.26787085,0.000199,2]
[373450377,1753013504181,-208.0,0.0001992,2]
[373450378,1753013504190,-934.38,0.00019929,2]
[373450379,1753013504199,-151.0,0.00019929,2]
[373450380,1753013504208,-2463.23,0.00019929,2]
[373450381,1753013504218,-5095.48,0.00019929,2]
[373450382,1753013504229,-1204.94,0.00019929,2]
[373450383,1753013504239,-480.0,0.00019929,2]
[373450384,1753013504249,-1452.33,0.00019929,2]
[373450385,1753013504258,-1051.97,0.00019929,2]
[373450386,1753013504268,-1724.16,0.00019929,2]
[373450387,1753013504278,-541.23,0.00019929,2]
[373450388,1753013504287,-152.0,0.00019942,3]
[373450389,1753013504298,-2390.0,0.00019945,2]
[373450390,1753013504307,-1190.0,0.00019945,2]
[373450391,1753013504317,-500.0,0.00019945,2]
[373450392,1753013504326,-500.0,0.00019945,2]
[373450393,1753013504335,-693.0,0.00019945,2]
[373450394,1753013504345,-480.0,0.00019945,2]
[373450395,1753013504354,-151.0,0.00019945,2]
[373450396,1753013504363,-480.0,0.00019945,2]
[373450397,1753013504372,-480.0,0.00019945,2]
[373450398,1753013504381,-528.17,0.00019945,2]
[373450399,1753013504391,-480.0,0.00019945,2]
[373450400,1753013504400,-480.0,0.00019945,2]
[373450401,1753013504409,-768.09,0.00019945,2]
[373450402,1753013504418,-480.0,0.00019945,2]
[373450403,1753013504427,-480.0,0.00019945,2]
[373450404,1753013504436,-302.68472891,0.00019945,2]
[373450405,1753013504446,-241.35,0.00019945,2]
[373450406,1753013504455,-480.0,0.00019945,2]
[373450407,1753013504464,-151.0,0.00019945,2]
[373450408,1753013504474,-480.0,0.00019945,2]
[373450409,1753013504483,-717.14,0.00019945,2]
[373450410,1753013504491,-514.87,0.00019945,2]
[373450411,1753013504501,-151.0,0.00019945,2]
[373450412,1753013504510,-480.0,0.00019945,2]
[373450413,1753013504519,-3843.99,0.00019945,2]
[373450414,1753013504528,-539.15,0.00019945,2]
[373450415,1753013504537,-480.0,0.00019945,2]
[373450416,1753013504546,-1523.74,0.00019945,2]
[373450417,1753013504556,-480.0,0.00019945,2]
[373450418,1753013504566,-480.0,0.00019945,2]
[373450419,1753013504576,-1042.47,0.00019945,2]
[373450420,1753013504585,-480.0,0.00019945,2]
[373450421,1753013504596,-480.0,0.00019945,2]
[373450422,1753013504607,-702.1,0.00019945,2]
[373450423,1753013504617,-772.87,0.00019945,2]
[373450424,1753013504629,-151.0,0.00019945,2]
[373450425,1753013504640,-910.08,0.00019945,2]
[373450426,1753013504649,-2302.17,0.00019945,2]
[373450427,1753013504658,-480.0,0.00019945,2]
[373450428,1753013504668,-480.0,0.00019945,2]
[373450429,1753013504678,-480.0,0.00019945,2]
[373450430,1753013504688,-778.06,0.00019945,2]
[373450431,1753013504698,-555.99,0.00019945,2]
[373450432,1753013504707,-480.0,0.00019945,2]
[373450433,1753013504717,-468.68,0.00019945,2]
[373450434,1753013504726,-217.09802,0.00019945,2]
[373450435,1753013504736,-500.02,0.00019945,2]
[373450436,1753013504746,-480.0,0.00019945,2]
[373450437,1753013504756,-480.0,0.00019945,2]
[373450438,1753013504765,-480.0,0.00019945,2]
[373450439,1753013504774,-1104.39,0.00019945,2]
[373450440,1753013504783,-480.0,0.00019945,2]
[373450441,1753013504792,-480.0,0.00019945,2]
[373450442,1753013504801,-688.87,0.00019945,2]
[373450443,1753013504811,-480.0,0.00019945,2]
[373450444,1753013504820,-770.75,0.00019945,2]
[373450445,1753013504829,-480.0,0.00019945,2]
[373450446,1753013504839,-480.0,0.00019945,2]
[373450447,1753013504848,-690.41,0.00019945,2]
[373450448,1753013504858,-480.0,0.00019945,2]
[373450449,1753013504867,-480.0,0.00019945,2]
[373450450,1753013504878,-320.0,0.00019945,2]
[373450451,1753013504888,-490.06,0.00019945,2]
[373450452,1753013504897,-711.83,0.00019945,2]
[373450453,1753013504907,-665.57,0.00019945,2]
[373450454,1753013504917,-480.0,0.00019945,2]
[373450455,1753013504928,-480.0,0.00019945,2]
[373450456,1753013504937,-480.0,0.00019945,2]
[373450457,1753013504947,-559.66,0.00019945,2]
[373450458,1753013504956,-480.0,0.00019945,2]
[373450459,1753013504965,-1059.97,0.00019945,2]
[373450460,1753013504977,-480.0,0.00019945,2]
[373450461,1753013504986,-537.05,0.00019945,2]
[373450462,1753013504998,-480.0,0.00019945,2]
[373450463,1753013505008,-480.0,0.00019945,2]
[373450464,1753013505017,-480.0,0.00019945,2]
[373450465,1753013505027,-527.25,0.00019945,2]
[373450466,1753013505038,-480.0,0.00019945,2]
[373450467,1753013505049,-565.16841861,0.00019945,2]
[373450468,1753013505058,-480.0,0.00019945,2]
[373450469,1753013505068,-1151.96,0.00019945,2]
[373450470,1753013505078,-480.0,0.00019945,2]
[373450471,1753013505087,-480.0,0.00019945,2]
[373450472,1753013505096,-480.0,0.00019945,2]
[373450473,1753013505106,-480.0,0.00019945,2]
[373450474,1753013505115,-480.0,0.00019945,2]
[373450475,1753013505126,-177.164246,0.00019945,2]
[373450476,1753013505135,-917.78,0.00019945,2]
[373450477,1753013505144,-480.0,0.00019945,2]
[373450478,1753013505154,-480.0,0.00019945,2]
[373450479,1753013505163,-177.164246,0.00019945,2]
[373450480,1753013505173,-480.0,0.00019945,2]
[373450481,1753013505182,-688.83,0.00019945,2]
[373450482,1753013505191,-480.0,0.00019945,2]
[373450483,1753013505201,-1080.81,0.00019945,2]
[373450484,1753013505210,-1028.71,0.00019945,2]
[373450485,1753013505219,-899.52,0.00019945,2]
[373450486,1753013505231,-347.25575005,0.00019945,2]
[373450487,1753013505241,-480.0,0.00019945,2]
[373450488,1753013505251,-480.0,0.00019945,2]
[373450489,1753013505260,-480.0,0.00019945,2]
[373450490,1753013505271,-480.0,0.00019945,2]
[373450491,1753013505281,-828.24,0.00019945,2]
[373450492,1753013505290,-480.0,0.00019945,2]
[373450493,1753013505301,-707.39,0.00019945,2]
[373450494,1753013505311,-1143.47,0.00019945,2]
[373450495,1753013505320,-480.0,0.00019945,2]
[373450496,1753013505329,-480.0,0.00019945,2]
[373450497,1753013505338,-480.0,0.00019945,2]
[373450498,1753013505347,-672.05,0.00019945,2]
[373450499,1753013505357,-967.39,0.00019945,2]
[373450500,1753013505365,-562.11,0.00019945,2]
[373450501,1753013505376,-497.81,0.00019945,2]
[373450502,1753013505385,-480.0,0.00019945,2]
[373450503,1753013505395,-480.0,0.00019945,2]
[373450504,1753013505404,-659.85,0.00019945,2]
[373450505,1753013505413,-480.0,0.00019945,2]
[373450506,1753013505423,-480.0,0.00019945,2]
[373450507,1753013505432,-1469.92,0.00019945,2]
[373450508,1753013505441,-480.0,0.00019945,2]
[373450509,1753013505450,-1978.4,0.00019945,2]
[373450510,1753013505459,-480.0,0.00019945,2]
[373450511,1753013505469,-480.0,0.00019945,2]
[373450512,1753013505478,-480.0,0.00019945,2]
[373450513,1753013505487,-480.0,0.00019945,2]
[373450514,1753013505496,-773.9,0.00019945,2]
[373450515,1753013505506,-480.0,0.00019945,2]
[373450516,1753013505515,-539.88,0.00019945,2]
[373450517,1753013505524,-480.0,0.00019945,2]
[373450518,1753013505533,-291.946926,0.00019945,2]
[373450519,1753013505542,-480.0,0.00019945,2]
[373450520,1753013505551,-480.0,0.00019945,2]
[373450521,1753013505561,-743.85,0.00019945,2]
[373450522,1753013505570,-480.0,0.00019945,2]
[373450523,1753013505579,-291.946926,0.00019945,2]
[373450524,1753013505589,-480.0,0.00019945,2]
[373450525,1753013505598,-480.0,0.00019945,2]
[373450526,1753013505607,-1628.16,0.00019945,2]
[373450527,1753013505616,-948.39,0.00019945,2]
[373450528,1753013505629,-480.0,0.00019945,2]
[373450529,1753013505638,-1034.04,0.00019945,2]
[373450530,1753013505647,-480.0,0.00019945,2]
[373450531,1753013505657,-421.42848732,0.00019945,2]
[373450532,1753013505667,-480.0,0.00019945,2]
[373450533,1753013505676,-480.0,0.00019945,2]
[373450534,1753013505685,-575.14259294,0.00019945,2]
[373450535,1753013505695,-784.15,0.00019945,2]
[373450536,1753013505703,-508.41,0.00019945,2]
[373450537,1753013505713,-577.83,0.00019945,2]
[373450538,1753013505723,-480.0,0.00019945,2]
[373450539,1753013505732,-480.0,0.00019945,2]
[373450540,1753013505741,-480.0,0.00019945,2]
[373450541,1753013505750,-772.81,0.00019945,2]
[373450542,1753013505759,-480.0,0.00019945,2]
[373450543,1753013505768,-480.0,0.00019945,2]
[373450544,1753013505777,-480.0,0.00019945,2]
[373450545,1753013505786,-480.0,0.00019945,2]
[373450546,1753013505796,-480.0,0.00019945,2]
[373450547,1753013505805,-480.0,0.00019945,2]
[373450548,1753013505814,-558.96928744,0.00019945,2]
[373450549,1753013505823,-480.0,0.00019945,2]
[373450550,1753013505834,-480.0,0.00019945,2]
[373450551,1753013505843,-830.25,0.00019945,2]
[373450552,1753013505852,-480.0,0.00019945,2]
[373450553,1753013505861,-680.76,0.00019945,2]
[373450554,1753013505871,-480.0,0.00019945,2]
[373450555,1753013505883,-497.77,0.00019945,2]
[373450556,1753013505892,-480.0,0.00019945,2]
[373450557,1753013505902,-480.0,0.00019945,2]
[373450558,1753013505911,-480.0,0.00019945,2]
[373450559,1753013505921,-480.0,0.00019945,2]
[373450560,1753013505931,-889.11,0.00019945,2]
[373450561,1753013505939,-480.0,0.00019945,2]
[373450562,1753013505949,-480.0,0.00019945,2]
[373450563,1753013505958,-480.0,0.00019945,2]
[373450564,1753013505967,-480.0,0.00019945,2]
[373450565,1753013505976,-609.19,0.00019945,2]
[373450566,1753013505985,-703.8,0.00019945,2]
[373450567,1753013505994,-828.45,0.00019945,2]
[373450568,1753013506003,-480.0,0.00019945,2]
[373450569,1753013506013,-480.0,0.00019945,2]
[373450570,1753013506022,-480.0,0.00019945,2]
[373450571,1753013506032,-480.0,0.00019945,2]
[373450572,1753013506041,-480.0,0.00019945,2]
[373450573,1753013506050,-1244.587968,0.00019945,2]
[373450574,1753013506060,-480.0,0.00019945,2]
[373450575,1753013506069,-675.3,0.00019945,2]
[373450576,1753013506078,-480.0,0.00019945,2]
[373450577,1753013506087,-1244.587968,0.00019945,2]
[373450578,1753013506097,-480.0,0.00019945,2]
[373450579,1753013506107,-586.98,0.00019945,2]
[373450580,1753013506116,-979.4,0.00019945,2]
[373450581,1753013506128,-1902.48,0.00019945,2]
[373450582,1753013506137,-480.0,0.00019945,2]
[373450583,1753013506147,-892.2,0.00019945,2]
[373450584,1753013506156,-994.27,0.00019945,2]
[373450585,1753013506165,-480.0,0.00019945,2]
[373450586,1753013506175,-587.05,0.00019945,2]
[373450587,1753013506185,-480.0,0.00019945,2]
[373450588,1753013506194,-986.19,0.00019945,2]
[373450589,1753013506204,-943.03,0.00019945,2]
[373450590,1753013506213,-1047.81,0.00019945,2]
[373450591,1753013506223,-545.89,0.00019945,2]
[373450592,1753013506235,-480.0,0.00019945,2]
[373450593,1753013506245,-1406.38,0.00019945,2]
[373450594,1753013506255,-685.54,0.00019945,2]
[373450595,1753013506266,-527.06,0.00019945,2]
[373450596,1753013506276,-480.0,0.00019945,2]
[373450597,1753013506285,-480.0,0.00019945,2]
[373450598,1753013506295,-1515.730714,0.00019945,2]
[373450599,1753013506311,-480.0,0.00019945,2]
[373450600,1753013506320,-1778.936356,0.00019945,2]
[373450601,1753013506330,-480.0,0.00019945,2]
[373450602,1753013506340,-1833.238425,0.00019945,2]
[373450603,1753013506349,-480.0,0.00019945,2]
[373450604,1753013506359,-480.0,0.00019945,2]
[373450605,1753013506368,-378.055051,0.00019945,2]
[373450606,1753013506379,-1739.85,0.00019945,2]
[373450607,1753013506388,-4173.55,0.00019945,2]
[373450608,1753013506397,-480.0,0.00019945,2]
[373450609,1753013506406,-378.055051,0.00019945,2]
[373450610,1753013506416,-1625.1,0.00019945,2]
[373450611,1753013506425,-480.0,0.00019945,2]
[373450612,1753013506434,-480.0,0.00019945,2]
[373450613,1753013506444,-275.94,0.00019945,2]
[373450614,1753013506453,-480.0,0.00019945,2]
[373450615,1753013506463,-824.79,0.00019945,2]
[373450616,1753013506473,-566.57,0.00019945,2]
[373450617,1753013506483,-480.0,0.00019945,2]
[373450618,1753013506493,-634.94,0.00019945,2]
[373450619,1753013506504,-4020.73,0.00019945,2]
[373450620,1753013506513,-848.58,0.00019945,2]
[373450621,1753013506523,-677.06,0.00019945,2]
[373450622,1753013506532,-480.0,0.00019945,2]
[373450623,1753013506543,-480.0,0.00019945,2]
[373450624,1753013506552,-480.0,0.00019945,2]
[373450625,1753013506562,-480.0,0.00019945,2]
[373450626,1753013506572,-480.0,0.00019945,2]
[373450627,1753013506582,-480.0,0.00019945,2]
[373450628,1753013506591,-736.11,0.00019945,2]
[373450629,1753013506600,-480.0,0.00019945,2]
[373450630,1753013506610,-480.0,0.00019945,2]
[373450631,1753013506620,-1000.0,0.00019945,2]
[373450632,1753013506631,-1960.09,0.00019945,2]
[373450633,1753013506640,-731.9,0.00019945,2]
[373450634,1753013506650,-1492.33,0.00019945,2]
[373450635,1753013506661,-480.0,0.00019945,2]
[373450636,1753013506671,-480.0,0.00019945,2]
[373450637,1753013506682,-480.0,0.00019945,2]
[373450638,1753013506691,-725.75,0.00019945,2]
[373450639,1753013506701,-480.0,0.00019945,2]
[373450640,1753013506711,-772.64,0.00019945,2]
[373450641,1753013506724,-506.65,0.00019945,2]
[373450642,1753013506733,-1098.6,0.00019945,2]
[373450643,1753013506746,-1030.7,0.00019945,2]
[373450644,1753013506756,-480.0,0.00019945,2]
[373450645,1753013506935,-1312.22,0.00019945,2]
[373450646,1753013506946,-1191.66,0.00019945,2]
[373450647,1753013506955,-2774.45,0.00019945,2]
[373450648,1753013506965,-866.31,0.00019945,2]
[373450649,1753013506974,-508.38147917,0.00019945,2]
[373450650,1753013506984,-480.0,0.00019945,2]
[373450651,1753013506994,-480.56,0.00019945,2]
[373450652,1753013507003,-3797.56,0.00019945,2]
[373450653,1753013507012,-201.18,0.00019945,2]
[373450654,1753013507022,-480.0,0.00019945,2]
[373450655,1753013507032,-480.0,0.00019945,2]
[373450656,1753013507042,-480.0,0.00019945,2]
[373450657,1753013507052,-480.0,0.00019945,2]
[373450658,1753013507061,-1643.95,0.00019945,2]
[373450659,1753013507071,-480.0,0.00019945,2]
[373450660,1753013507080,-519.95,0.00019945,2]
[373450661,1753013507090,-480.0,0.00019945,2]
[373450662,1753013507100,-480.0,0.00019945,2]
[373450663,1753013507109,-650.82,0.00019945,2]
[373450664,1753013507119,-781.18,0.00019945,2]
[373450665,1753013507130,-1228.87,0.00019945,2]
[373450666,1753013507140,-480.0,0.00019945,2]
[373450667,1753013507150,-480.0,0.00019945,2]
[373450668,1753013507160,-1321.79,0.00019945,2]
[373450669,1753013507171,-480.0,0.00019945,2]
[373450670,1753013507180,-480.0,0.00019945,2]
[373450671,1753013507190,-2085.45,0.00019945,2]
[373450672,1753013507201,-819.47,0.00019945,2]
[373450673,1753013507211,-3694.26,0.00019945,2]
[373450674,1753013507221,-480.0,0.00019945,2]
[373450675,1753013507233,-480.0,0.00019945,2]
[373450676,1753013507243,-480.0,0.00019945,2]
[373450677,1753013507253,-5917.35,0.00019945,2]
[373450678,1753013507262,-480.0,0.00019945,2]
[373450679,1753013507273,-1898.44,0.00019945,2]
[373450680,1753013507283,-809.54,0.00019945,2]
[373450681,1753013507292,-480.0,0.00019945,2]
[373450682,1753013507302,-1485.49,0.00019945,2]
[373450683,1753013507314,-480.0,0.00019945,2]
[373450684,1753013507324,-818.6,0.00019945,2]
[373450685,1753013507333,-851.55,0.00019945,2]
[373450686,1753013507343,-241.39679723,0.00019945,2]
[373450687,1753013507383,-480.0,0.00019178,2]
[373450688,1753013507392,-480.0,0.00019287,2]
[373450689,1753013507402,-337.10320277,0.00019945,2]
[373450690,1753013507411,-1728.42,0.00019945,2]
[373450691,1753013507421,-4649.23,0.00019945,2]
[373450692,1753013507432,-480.0,0.00019945,2]
[373450693,1753013507443,-480.0,0.00019945,2]
[373450694,1753013507453,-480.0,0.00019945,2]
[373450695,1753013507463,-2001.53,0.00019945,2]
[373450696,1753013507473,-480.0,0.00019945,2]
[373450697,1753013507482,-2078.86,0.00019945,2]
[373450698,1753013507492,-480.0,0.00019945,2]
[373450699,1753013507502,-1020.01,0.00019945,2]
[373450700,1753013507512,-3754.87,0.00019945,2]
[373450701,1753013507521,-151.0,0.00019945,2]
[373450702,1753013507531,-480.0,0.00019945,2]
[373450703,1753013507540,-402.8541935,0.00019945,2]
[373450704,1753013507550,-177.888649,0.00019945,2]
[373450705,1753013507559,-480.0,0.00019945,2]
[373450706,1753013507569,-1895.18,0.00019945,2]
[373450707,1753013507579,-6637.19,0.00019945,2]
[373450708,1753013507588,-1813.96,0.00019945,2]
[373450709,1753013507598,-480.0,0.00019945,2]
[373450710,1753013507607,-7136.14,0.00019945,2]
[373450711,1753013507616,-5729.04,0.00019945,2]
[373450712,1753013507628,-1008.27,0.00019945,2]
[373450713,1753013507637,-953.76,0.00019945,2]
[373450714,1753013507647,-619.42131849,0.00019945,2]
[373450715,1753013507657,-480.0,0.00019945,2]
[373450716,1753013507667,-480.0,0.00019945,2]
[373450717,1753013507677,-1994.7,0.00019945,2]
[373450718,1753013507687,-480.0,0.00019945,2]
[373450719,1753013507697,-1969.3,0.00019945,2]
[373450720,1753013507706,-480.0,0.00019945,2]
[373450721,1753013507716,-2702.34,0.00019945,2]
[373450722,1753013507726,-1429.26,0.00019945,2]
[373450723,1753013507736,-1064.74,0.00019945,2]
[373450724,1753013507746,-960.16,0.00019945,2]
[373450725,1753013507756,-1003.77,0.00019945,2]
[373450726,1753013507766,-738.76,0.00019945,2]
[373450727,1753013507775,-480.0,0.00019945,2]
[373450728,1753013507785,-2552.29,0.00019945,2]
[373450729,1753013507795,-1832.72,0.00019945,2]
[373450730,1753013507805,-878.37,0.00019945,2]
[373450731,1753013507814,-480.0,0.00019945,2]
[373450732,1753013507824,-1226.69,0.00019945,2]
[373450733,1753013507835,-1125.25,0.00019945,2]
[373450734,1753013507845,-1848.72,0.00019945,2]
[373450735,1753013507854,-789.12,0.00019945,2]
[373450736,1753013507864,-480.0,0.00019945,2]
[373450737,1753013507875,-2495.08,0.00019945,2]
[373450738,1753013507885,-1082.7,0.00019945,2]
[373450739,1753013507894,-1246.44,0.00019945,2]
[373450740,1753013507903,-1021.31,0.00019945,2]
[373450741,1753013507914,-635.54,0.00019945,2]
[373450742,1753013507924,-2763.18,0.00019945,2]
[373450743,1753013507935,-480.0,0.00019945,2]
[373450744,1753013507945,-625.41,0.00019945,2]